bitfinex-derivatives/quotes_BNBF0:USTF0_20260110
["timestamp","ask_amount","ask_price","bid_price","bid_amount"]
[1768082560044,4.91546447,905.84,905.05,0.71809466]
[1768082560345,4.91546447,905.84,905.06,0.71809466]
[1768082560548,4.91546447,905.84,905.07,0.71809466]
[1768082560748,4.91546447,905.84,905.08,0.71809466]
[1768082560944,4.91546447,905.84,905.09,0.71809466]
[1768082561147,4.91546447,905.84,905.1,0.71848536]
[1768082561345,4.91546447,905.84,904.99,7.25041829]
[1768082561549,4.91546447,905.84,905.0,0.71848524]
[1768082561751,4.91546447,905.84,905.01,0.71848524]
[1768082562049,4.91546447,905.84,905.02,0.71848524]
[1768082562249,4.91546447,905.84,905.03,0.71848524]
[1768082562450,4.91546447,905.84,905.04,0.71848524]
[1768082562648,4.91546447,905.84,905.05,0.71848524]
[1768082562848,4.91546447,905.84,905.06,0.71848524]
[1768082563049,4.91546447,905.84,905.07,0.71848524]
[1768082563351,4.91546447,905.84,905.08,0.71848524]
[1768082563550,4.91546447,905.84,905.09,0.71848524]
[1768082563747,4.91546447,905.84,905.1,0.71848524]
[1768082563949,4.91546447,905.84,905.11,0.71848524]
[1768082564146,4.91546447,905.84,905.12,0.71848524]
[1768082564347,4.91546447,905.84,905.13,0.71848524]
[1768082564650,4.91546447,905.84,904.99,7.25041829]
[1768082564851,4.91546447,905.84,905.0,0.71905308]
[1768082565052,4.91546447,905.84,905.01,0.71905308]
[1768082565249,4.91546447,905.84,905.02,0.71905308]
[1768082565552,4.91546447,905.84,905.03,0.71905308]
[1768082565753,4.91546447,905.84,905.04,0.71905308]
[1768082565950,4.91546447,905.84,905.05,0.71905308]
[1768082566152,4.91546447,905.84,904.99,7.25041829]
[1768082566153,4.91546447,905.84,905.06,0.71905308]
[1768082566352,4.91546447,905.84,905.07,0.71905308]
[1768082566651,4.91546447,905.84,904.99,7.25041829]
[1768082566652,4.91546447,905.84,905.08,0.71905308]
[1768082566848,4.91546447,905.84,905.09,0.71905308]
[1768082567048,4.91546447,905.84,905.1,0.71905308]
[1768082567352,4.91546447,905.84,905.11,0.71905308]
[1768082567550,4.91546447,905.84,905.12,0.71905308]
[1768082567752,4.91546447,905.84,905.13,0.71905308]
[1768082567956,4.91546447,905.84,905.14,0.71905308]
[1768082568253,4.91546447,905.84,904.99,7.25041829]
[1768082568454,4.91546447,905.84,905.0,0.71913133]
[1768082568750,4.91546447,905.84,904.99,7.25041829]
[1768082568751,4.91546447,905.84,905.01,0.71913133]
[1768082568954,4.91546447,905.84,905.02,0.71913133]
[1768082569253,4.91546447,905.84,905.03,0.71913133]
[1768082569452,4.91546447,905.84,905.04,0.71913133]
[1768082569754,4.91546447,905.84,905.05,0.71913133]
[1768082569953,4.91546447,905.84,905.06,0.71913133]
[1768082570249,4.91546447,905.84,905.07,0.71913133]
[1768082570449,4.91546447,905.84,905.08,0.71913133]
[1768082570650,4.91546447,905.84,905.09,0.71913133]
[1768082570853,4.91546447,905.84,905.1,0.71913133]
[1768082571053,4.91546447,905.84,905.11,0.71913133]
[1768082571252,4.91546447,905.84,905.12,0.71913133]
[1768082571453,4.91546447,905.84,905.13,0.71913133]
[1768082571653,4.91546447,905.84,904.99,7.25041829]
[1768082571855,4.91546447,905.84,905.0,0.71916287]
[1768082572052,4.91546447,905.84,905.01,0.71916287]
[1768082572353,4.91546447,905.84,905.02,0.71916287]
[1768082572555,4.91546447,905.84,905.03,0.71916287]
[1768082572755,4.91546447,905.84,905.04,0.71916287]
[1768082572952,4.91546447,905.84,905.05,0.71916287]
[1768082573254,4.91546447,905.84,905.06,0.71916287]
[1768082573461,4.91546447,905.84,905.07,0.71916287]
[1768082573757,4.91546447,905.84,905.08,0.71916287]
[1768082573955,4.91546447,905.84,905.02,1.962]
[1768082573956,4.91546447,905.84,905.09,0.71916287]
[1768082574152,4.91546447,905.84,905.1,0.71916287]
[1768082574353,4.91546447,905.84,905.11,0.71916287]
[1768082574556,4.91546447,905.84,905.12,0.71916287]
[1768082574756,4.91546447,905.84,905.13,0.71916287]
[1768082575058,4.91546447,905.84,905.14,0.71916287]
[1768082575257,0.19219723,905.86,905.02,1.962]
[1768082575554,0.19219723,905.86,905.03,0.72526968]
[1768082575759,0.19219723,905.86,905.04,0.72526968]
[1768082575958,0.19219723,905.86,905.05,0.72526968]
[1768082576153,0.19219723,905.86,905.06,0.72526968]
[1768082576353,0.19219723,905.86,905.07,0.72526968]
[1768082576555,0.19219723,905.86,905.08,0.72526968]
[1768082576754,0.19219723,905.86,905.09,0.72526968]
[1768082576958,0.19219723,905.86,905.1,0.72526968]
[1768082577257,0.19219723,905.86,905.11,0.72526968]
[1768082577457,0.19219723,905.86,905.12,0.72526968]
[1768082577658,0.19219723,905.86,905.13,0.72526968]
[1768082577853,0.19219723,905.86,905.14,0.72526968]
[1768082578058,0.19219723,905.86,905.02,1.962]
[1768082578258,0.19219723,905.86,905.03,0.72523517]
[1768082578454,0.19219723,905.86,905.04,0.72523517]
[1768082578657,0.19219723,905.86,905.05,0.72523517]
[1768082578855,0.19219723,905.86,905.06,0.72523517]
[1768082579058,0.19219723,905.86,905.07,0.72523517]
[1768082579353,0.19219723,905.86,905.08,0.72523517]
[1768082579554,0.19219723,905.86,905.09,0.72523517]
[1768082579754,0.19219723,905.86,905.1,0.72523517]
[1768082579959,0.19219723,905.86,905.11,0.72523517]
[1768082580259,0.19219723,905.86,905.12,0.72523517]
[1768082580459,0.19219723,905.86,905.02,1.962]
[1768082580659,0.19219723,905.86,905.03,0.72522203]
[1768082580860,0.19219723,905.86,905.04,0.72522203]
[1768082581068,0.19219723,905.86,905.05,0.72522203]
[1768082581254,0.19219723,905.86,905.06,0.72522203]
[1768082581454,0.19219723,905.86,905.07,0.72522203]
[1768082581656,0.19219723,905.86,905.08,0.72522203]
[1768082581860,0.19219723,905.86,905.09,0.72522203]
[1768082582060,0.19219723,905.86,905.1,0.72522203]
[1768082582261,0.19219723,905.86,905.11,0.72522203]
[1768082582458,0.19219723,905.86,905.12,0.72522203]
[1768082582662,0.19219723,905.86,905.02,1.962]
[1768082582859,0.19219723,905.86,905.03,0.7252107]
[1768082583060,0.19219723,905.86,905.04,0.7252107]
[1768082583257,0.19219723,905.86,905.05,0.7252107]
[1768082583461,0.19219723,905.86,905.06,0.7252107]
[1768082583660,0.19219723,905.86,905.07,0.7252107]
[1768082583862,0.19219723,905.86,905.08,0.7252107]
[1768082584058,0.19219723,905.86,905.09,0.7252107]
[1768082584262,0.19219723,905.86,905.1,0.7252107]
[1768082584460,0.19219723,905.86,905.02,1.962]
[1768082584662,0.19219723,905.86,905.03,0.72521709]
[1768082584860,0.19219723,905.86,905.04,0.72521709]
[1768082585063,0.19219723,905.86,905.05,0.72521709]
[1768082585263,0.19219723,905.86,905.06,0.72521709]
[1768082585461,0.19219723,905.86,905.07,0.72521709]
[1768082585765,0.19219723,905.86,905.08,0.72521709]
[1768082585959,0.19219723,905.86,905.09,0.72521709]
[1768082586261,0.19219723,905.86,904.99,7.25041829]
[1768082586262,0.19219723,905.86,905.1,0.72521709]
[1768082586462,0.19219723,905.86,904.99,7.25041829]
[1768082586664,0.19219723,905.86,905.0,0.72527892]
[1768082586960,0.19219723,905.86,905.01,0.72527892]
[1768082587161,0.19219723,905.86,905.02,0.72527892]
[1768082587363,0.19219723,905.86,905.03,0.72527892]
[1768082587568,0.19219723,905.86,905.04,0.72527892]
[1768082587761,0.19219723,905.86,905.05,0.72527892]
[1768082588065,0.19219723,905.86,905.06,0.72527892]
[1768082588263,0.19219723,905.86,905.07,0.72527892]
[1768082588468,0.19219723,905.86,905.06,1.856]
[1768082588469,0.19219723,905.86,905.08,0.72527892]
[1768082588670,0.19219723,905.86,905.06,1.856]
[1768082609187,0.19219723,905.86,905.07,0.72284149]
[1768082609381,0.19219723,905.86,905.08,0.72284149]
[1768082609581,0.19219723,905.86,905.09,0.72284149]
[1768082609887,0.19219723,905.86,905.06,1.856]
[1768082610084,0.19219723,905.86,905.07,0.7228527]
[1768082610282,0.19219723,905.86,905.08,0.7228527]
[1768082610483,0.19219723,905.86,905.09,0.7228527]
[1768082610683,0.19219723,905.86,905.06,1.856]
[1768082610883,0.19219723,905.86,905.07,0.72287082]
[1768082611087,0.19219723,905.86,905.08,0.72287082]
[1768082611286,0.19219723,905.86,905.09,0.72287082]
[1768082611584,0.19219723,905.86,905.1,0.72287082]
[1768082611788,0.19219723,905.86,905.11,0.72287082]
[1768082611986,0.19219723,905.86,905.06,1.856]
[1768082612181,0.19219723,905.86,905.07,0.72286779]
[1768082612384,0.19219723,905.86,905.08,0.72286779]
[1768082612583,0.19219723,905.86,905.09,0.72286779]
[1768082612887,0.19219723,905.86,905.1,0.72286779]
[1768082613187,0.19219723,905.86,905.11,0.72286779]
[1768082613486,0.19219723,905.86,905.06,1.856]
[1768082613687,0.19219723,905.86,905.07,0.72288619]
[1768082613888,0.19219723,905.86,905.08,0.72288619]
[1768082614088,0.19219723,905.86,905.09,0.72288619]
[1768082614285,0.19219723,905.86,905.1,0.72288619]
[1768082614483,0.19219723,905.86,905.11,0.72288619]
[1768082614685,0.19219723,905.86,905.06,1.856]
[1768082614889,0.19219723,905.86,905.07,0.72289358]
[1768082615086,0.19219723,905.86,905.08,0.72289358]
[1768082615388,0.19219723,905.86,905.09,0.72289358]
[1768082615584,0.19219723,905.86,905.1,0.72289358]
[1768082615789,0.19219723,905.86,905.11,0.72289358]
[1768082615985,0.19219723,905.86,905.12,0.72289358]
[1768082616185,0.19219723,905.86,905.06,1.856]
[1768082616386,0.19219723,905.86,905.07,0.72290801]
[1768082616588,0.19219723,905.86,905.08,0.72290801]
[1768082616790,0.19219723,905.86,905.09,0.72290801]
[1768082617089,0.19219723,905.86,905.1,0.72290801]
[1768082617287,0.19219723,905.86,905.11,0.72290801]
[1768082617490,0.19219723,905.86,905.12,0.72290801]
[1768082617691,0.19219723,905.86,905.06,1.856]
[1768082617891,0.19219723,905.86,905.07,0.72291509]
[1768082618088,0.19219723,905.86,905.08,0.72291509]
[1768082618287,0.19219723,905.86,905.09,0.72291509]
[1768082618591,0.19219723,905.86,905.1,0.72291509]
[1768082618789,0.19219723,905.86,905.11,0.72291509]
[1768082619092,0.19219723,905.86,905.12,0.72291509]
[1768082619291,0.19219723,905.86,904.99,7.25041829]
[1768082619487,0.19219723,905.86,905.0,0.72292982]
[1768082619686,0.19219723,905.86,905.01,0.72292982]
[1768082619889,0.19219723,905.86,905.02,0.72292982]
[1768082620090,0.19219723,905.86,905.03,0.72292982]
[1768082620291,0.19219723,905.86,905.04,0.72292982]
[1768082620486,0.19219723,905.86,905.05,0.72292982]
[1768082620785,0.19219723,905.86,905.06,0.72292982]
[1768082620990,0.19219723,905.86,905.07,0.72292982]
[1768082621191,0.19219723,905.86,905.08,0.72292982]
[1768082621387,0.19219723,905.86,905.09,0.72292982]
[1768082621688,0.19219723,905.86,905.1,0.72292982]
[1768082621888,0.19219723,905.86,905.11,0.72292982]
[1768082622189,0.19219723,905.86,905.12,0.72292982]
[1768082622489,0.19219723,905.86,905.09,2.235]
[1768082622694,0.19219723,905.86,905.1,0.72295167]
[1768082622893,0.19219723,905.86,905.11,0.72295167]
[1768082623190,0.19219723,905.86,905.12,0.72295167]
[1768082623393,0.19219723,905.86,905.09,2.235]
[1768082623688,0.19219723,905.86,905.1,0.72295935]
[1768082623893,0.19219723,905.86,905.11,0.72295935]
[1768082624194,0.19219723,905.86,905.12,0.72295935]
[1768082624390,0.19219723,905.86,905.09,2.235]
[1768082624592,0.19219723,905.86,905.1,0.72296715]
[1768082624792,0.19219723,905.86,905.11,0.72296715]
[1768082625090,0.19219723,905.86,905.12,0.72296715]
[1768082625290,0.19219723,905.86,905.09,2.235]
[1768082625592,0.19219723,905.86,905.1,0.72296943]
[1768082625789,0.19219723,905.86,905.11,0.72296943]
[1768082626092,0.19219723,905.86,905.12,0.72296943]
[1768082626288,0.19219723,905.86,905.09,2.235]
[1768082626488,0.19219723,905.86,905.1,0.72296543]
[1768082626694,0.19219723,905.86,905.11,0.72296543]
[1768082626891,0.19219723,905.86,905.12,0.72296543]
[1768082627093,0.19219723,905.86,905.09,2.235]
[1768082627297,0.19219723,905.86,905.1,0.72296543]
[1768082627496,0.19219723,905.86,905.11,0.72296543]
[1768082627692,0.19219723,905.86,905.12,0.72296543]
[1768082627893,0.19219723,905.86,905.09,2.235]
[1768082628193,0.19219723,905.86,905.1,0.72296158]
[1768082628396,0.19219723,905.86,905.11,0.72296158]
[1768082628594,0.19219723,905.86,905.12,0.72296158]
[1768082628794,0.19219723,905.86,905.09,2.235]
[1768082628997,0.19219723,905.86,905.1,0.72295776]
[1768082629194,0.19219723,905.86,905.11,0.72295776]
[1768082629393,0.19219723,905.86,905.12,0.72295776]
[1768082629692,0.19219723,905.86,905.09,2.235]
[1768082629893,0.19219723,905.86,905.1,0.7229541]
[1768082630092,0.19219723,905.86,905.11,0.7229541]
[1768082630296,0.19219723,905.86,905.12,0.7229541]
[1768082630492,0.19219723,905.86,905.09,2.235]
[1768082630797,0.19219723,905.86,905.1,0.72295034]
[1768082630997,0.19219723,905.86,905.11,0.72295034]
[1768082631196,0.19219723,905.86,905.12,0.72295034]
[1768082631396,0.19219723,905.86,905.09,2.235]
[1768082631594,0.19219723,905.86,905.1,0.72294675]
[1768082631893,0.19219723,905.86,905.11,0.72294675]
[1768082632193,0.19219723,905.86,905.12,0.72294675]
[1768082632494,0.19219723,905.86,905.09,2.235]
[1768082632697,0.19219723,905.86,905.1,0.72294307]
[1768082632895,0.19219723,905.86,905.11,0.72294307]
[1768082633096,0.19219723,905.86,905.12,0.72294307]
[1768082633295,0.19219723,905.86,905.09,2.235]
[1768082633799,0.19219723,905.86,904.99,7.25041829]
[1768082633995,0.19219723,905.86,905.0,0.72293931]
[1768082634196,0.19219723,905.86,905.01,0.72293931]
[1768082634498,0.19219723,905.86,905.02,0.72293931]
[1768082634698,0.19219723,905.86,905.03,0.72293931]
[1768082634895,0.19219723,905.86,905.04,0.72293931]
[1768082635099,0.19219723,905.86,905.05,0.72293931]
[1768082635299,0.19219723,905.86,905.06,0.72293931]
[1768082635498,0.19219723,905.86,905.07,0.72293931]
[1768082635700,0.19219723,905.86,905.08,0.72293931]
[1768082635896,0.19219723,905.86,905.09,0.72293931]
[1768082636196,0.19219723,905.86,904.99,7.25041829]
[1768082636396,0.19219723,905.86,905.0,0.72240864]
[1768082636596,0.19219723,905.86,905.01,0.72240864]
[1768082636795,0.19219723,905.86,905.02,0.72240864]
[1768082636996,0.19219723,905.86,904.99,7.25041829]
[1768082636997,0.19219723,905.86,905.03,0.72240864]
[1768082637201,0.19219723,905.86,905.04,0.72240864]
[1768082637401,0.19219723,905.86,905.05,0.72240864]
[1768082637700,0.19219723,905.86,905.06,2.92640864]
[1768082637898,0.19219723,905.86,905.07,0.72240864]
[1768082638198,0.19219723,905.86,905.06,2.204]
[1768082638199,0.19219723,905.86,905.08,0.72240864]
[1768082638397,0.19219723,905.86,905.09,0.72240864]
[1768082638600,0.19219723,905.86,905.06,2.204]
[1768082638798,0.19219723,905.86,905.07,0.72240846]
[1768082638997,0.19219723,905.86,905.08,0.72240846]
[1768082639198,0.19219723,905.86,905.09,0.72240846]
[1768082639402,0.19219723,905.86,905.06,2.204]
[1768082639601,0.19219723,905.86,905.07,0.72241439]
[1768082639801,0.19219723,905.86,905.08,0.72241439]
[1768082639999,0.19219723,905.86,905.09,0.72241439]
[1768082640199,0.19219723,905.86,905.06,2.204]
[1768082640499,0.19219723,905.86,905.07,0.72241321]
[1768082640701,0.19219723,905.86,905.08,0.72241321]
[1768082640996,0.19219723,905.86,905.09,0.72241321]
[1768082641199,0.19219723,905.86,905.06,2.204]
[1768082641399,0.19219723,905.86,905.07,0.72242237]
[1768082641600,0.19219723,905.86,905.08,0.72242237]
[1768082641800,0.19219723,905.86,905.09,0.72242237]
[1768082641999,0.19219723,905.86,905.06,2.204]
[1768082642299,0.19219723,905.86,905.07,0.72242237]
[1768082642602,0.19219723,905.86,905.08,0.72242237]
[1768082642902,0.19219723,905.86,905.09,0.72242237]
[1768082643099,0.19219723,905.86,905.06,2.204]
[1768082643299,0.19219723,905.86,905.07,0.72244387]
[1768082643500,0.19219723,905.86,905.08,0.72244387]
[1768082643703,0.19219723,905.86,905.09,0.72244387]
[1768082644003,0.19219723,905.86,905.1,0.72244387]
[1768082644200,0.19219723,905.86,905.11,0.72244387]
[1768082644400,0.19219723,905.86,905.12,0.72244387]
[1768082644700,0.19219723,905.86,905.06,2.204]
[1768082644903,0.19219723,905.86,905.07,0.7224673]
[1768082645103,0.19219723,905.86,905.08,0.7224673]
[1768082645304,0.19219723,905.86,905.09,0.7224673]
[1768082645505,0.19219723,905.86,905.1,0.7224673]
[1768082645703,0.19219723,905.86,905.11,0.7224673]
[1768082645901,0.19219723,905.86,905.12,0.7224673]
[1768082646100,0.19219723,905.86,905.06,2.204]
[1768082646301,0.19219723,905.86,905.07,0.72253582]
[1768082646505,0.19219723,905.86,905.08,0.72253582]
[1768082646805,0.19219723,905.86,905.09,0.72253582]
[1768082647002,0.19219723,905.86,905.1,0.72253582]
[1768082647305,0.19219723,905.86,905.11,0.72253582]
[1768082647505,0.19219723,905.86,905.12,0.72253582]
[1768082647701,0.19219723,905.86,905.13,0.72253582]
[1768082648006,0.19219723,905.86,905.06,2.204]
[1768082648206,0.19219723,905.86,905.07,0.72266306]
[1768082648401,0.19219723,905.86,905.08,0.72266306]
[1768082648602,0.19219723,905.86,905.09,0.72266306]
[1768082648804,0.19219723,905.86,905.1,0.72266306]
[1768082649106,0.19219723,905.86,905.11,0.72266306]
[1768082649305,0.19219723,905.86,905.12,0.72266306]
[1768082649601,0.19219723,905.86,905.13,0.72266306]
[1768082649804,0.19219723,905.86,905.14,0.72266306]
[1768082650001,0.19219723,905.86,905.06,2.204]
[1768082650203,0.19219723,905.86,905.07,0.72284443]
[1768082650402,0.19219723,905.86,905.08,0.72284443]
[1768082650604,0.19219723,905.86,905.09,0.72284443]
[1768082650801,0.19219723,905.86,905.1,0.72284443]
[1768082651004,0.19219723,905.86,905.11,0.72284443]
[1768082651204,0.19219723,905.86,905.12,0.72284443]
[1768082651402,0.19219723,905.86,905.06,2.204]
[1768082651604,0.19219723,905.86,905.07,0.72311791]
[1768082651807,0.19219723,905.86,905.08,0.72311791]
[1768082652006,0.19219723,905.86,905.09,0.72311791]
[1768082652206,0.19219723,905.86,905.1,0.72311791]
[1768082652408,0.19219723,905.86,905.11,0.72311791]
[1768082652612,0.19219723,905.86,905.12,0.72311791]
[1768082652811,0.19219723,905.86,905.06,2.204]
[1768082653011,0.19219723,905.86,905.07,0.72329616]
[1768082653209,0.19219723,905.86,905.08,0.72329616]
[1768082653412,0.19219723,905.86,905.09,0.72329616]
[1768082653608,0.19219723,905.86,905.1,0.72329616]
[1768082653909,0.19219723,905.86,905.06,2.204]
[1768082654108,0.19219723,905.86,905.07,0.7235884]
[1768082654311,0.19219723,905.86,905.08,0.7235884]
[1768082654509,0.19219723,905.86,905.09,0.7235884]
[1768082654714,0.19219723,905.86,905.06,2.204]
[1768082654911,0.19219723,905.86,905.07,0.723489]
[1768082655110,0.19219723,905.86,905.08,0.723489]
[1768082655309,0.19219723,905.86,905.09,0.723489]
[1768082655510,0.19219723,905.86,905.06,2.204]
[1768082655715,0.19219723,905.86,905.07,0.72340236]
[1768082655914,0.19219723,905.86,905.08,0.72340236]
[1768082656115,0.19219723,905.86,905.09,0.72340236]
[1768082656415,0.19219723,905.86,905.06,2.204]
[1768082656710,0.19219723,905.86,905.07,0.72332976]
[1768082657011,0.19219723,905.86,905.08,0.72332976]
[1768082657214,0.19219723,905.86,905.06,2.204]
[1768082657514,0.19219723,905.86,905.07,0.72326934]
[1768082657715,0.19219723,905.86,905.08,0.72326934]
[1768082658014,0.19219723,905.86,905.06,2.204]
[1768082658212,0.19219723,905.86,905.07,0.72326934]
[1768082658410,0.19219723,905.86,905.08,0.72326934]
[1768082658614,0.19219723,905.86,905.06,2.204]
[1768082658815,0.19219723,905.86,905.07,0.72321783]
[1768082659015,0.19219723,905.86,905.08,0.72321783]
[1768082659214,0.19219723,905.86,905.06,2.204]
[1768082659415,0.19219723,905.86,905.07,0.72317263]
[1768082659615,0.19219723,905.86,905.08,0.72317263]
[1768082659825,0.19219723,905.86,905.06,2.204]
[1768082660027,0.19219723,905.86,905.07,0.72317275]
[1768082660227,0.19219723,905.86,905.06,2.204]
[1768082660529,0.19219723,905.86,905.07,0.72313314]
[1768082660727,0.19219723,905.86,905.06,2.204]
[1768082660934,0.19219723,905.86,905.07,0.72313314]
[1768082661232,0.19219723,905.86,905.06,2.204]
[1768082661533,0.19219723,905.86,905.07,0.72309797]
[1768082661731,0.19219723,905.86,905.06,2.204]
[1768082662032,0.19219723,905.86,905.07,0.72309797]
[1768082662228,0.19219723,905.86,905.06,2.204]
[1768082662432,0.19219723,905.86,905.07,0.72306711]
[1768082662732,0.19219723,905.86,905.06,2.204]
[1768082662931,0.19219723,905.86,905.07,0.72306711]
[1768082663131,0.19219723,905.86,905.06,2.204]
[1768082663330,0.19219723,905.86,905.07,0.72304581]
[1768082663532,0.19219723,905.86,905.06,2.204]
[1768082663732,0.19219723,905.86,905.07,0.72303972]
[1768082663932,0.19219723,905.86,905.06,2.204]
[1768082664132,0.19219723,905.86,905.07,0.72303972]
[1768082664334,0.19219723,905.86,905.06,2.204]
[1768082664536,0.19219723,905.86,905.07,0.72301543]
[1768082664731,0.19219723,905.86,905.06,2.204]
[1768082664936,0.19219723,905.86,905.07,0.72225128]
[1768082665231,0.19219723,905.86,905.06,2.204]
[1768082685049,0.19219723,905.86,904.67,0.82913527]
[1768082685246,0.19219723,905.86,904.68,0.72233319]
[1768082685446,0.19219723,905.86,904.69,0.72233319]
[1768082685649,0.19219723,905.86,904.7,0.72233319]
[1768082685849,0.19219723,905.86,904.71,0.72233319]
[1768082686050,0.19219723,905.86,904.72,0.72233319]
[1768082686247,0.19219723,905.86,904.73,0.72233319]
[1768082686452,0.19219723,905.86,904.74,0.72233319]
[1768082686647,0.19219723,905.86,904.75,0.72233319]
[1768082686946,0.19219723,905.86,904.76,0.72233319]
[1768082687146,0.19219723,905.86,904.77,0.72233319]
[1768082687348,0.19219723,905.86,904.78,0.72233319]
[1768082687547,0.19219723,905.86,904.79,0.72233319]
[1768082687752,0.19219723,905.86,904.8,0.72233319]
[1768082688051,0.19219723,905.86,904.78,2.162]
[1768082688251,0.19219723,905.86,904.79,0.72167811]
[1768082688452,0.19219723,905.86,904.8,0.72167811]
[1768082688752,0.19219723,905.86,904.78,2.162]
[1768082688952,0.19219723,905.86,904.79,0.72153973]
[1768082689148,0.19219723,905.86,904.78,2.162]
[1768082689348,0.19219723,905.86,904.79,0.72142551]
[1768082689553,0.19219723,905.86,904.78,2.162]
[1768082689754,0.19219723,905.86,904.79,0.72142505]
[1768082689954,0.19219723,905.86,904.78,2.162]
[1768082690254,0.19219723,905.86,904.79,0.72142499]
[1768082690450,0.19219723,905.86,904.78,2.162]
[1768082690654,0.19219723,905.86,904.79,0.72133045]
[1768082690852,0.19219723,905.86,904.78,2.162]
[1768082691055,0.19219723,905.86,904.79,0.72133045]
[1768082691351,0.19219723,905.86,904.78,2.162]
[1768082705568,0.19219723,905.86,904.52,7.1899259]
[1768082705768,0.19219723,905.86,904.53,0.71827525]
[1768082706063,0.19219723,905.86,904.54,0.71827525]
[1768082706268,0.19219723,905.86,904.52,7.1899259]
[1768082706269,0.19219723,905.86,904.55,0.71827525]
[1768082706463,0.19219723,905.86,904.56,0.71827525]
[1768082706667,0.19219723,905.86,904.57,0.71827525]
[1768082706868,0.19219723,905.86,904.58,0.71827525]
[1768082707066,0.19219723,905.86,904.59,0.71827525]
[1768082707270,0.19219723,905.86,904.6,0.71827525]
[1768082707571,0.19219723,905.86,904.61,0.71827525]
[1768082707770,0.19219723,905.86,904.52,7.1899259]
[1768082707967,0.19219723,905.86,904.53,0.71820947]
[1768082708170,0.19219723,905.86,904.54,0.71820947]
[1768082708365,0.19219723,905.86,904.55,0.71820947]
[1768082708566,0.19219723,905.86,904.56,0.71820947]
[1768082708772,0.19219723,905.86,904.57,0.71820947]
[1768082708969,0.19219723,905.86,904.58,0.71820947]
[1768082709272,0.19219723,905.86,904.59,0.71820947]
[1768082709473,0.19219723,905.86,904.6,0.71820947]
[1768082709670,0.19219723,905.86,904.61,0.71820947]
[1768082709867,0.19219723,905.86,904.52,7.1899259]
[1768082710067,0.19219723,905.86,904.53,0.71817988]
[1768082710270,0.19219723,905.86,904.54,0.71817988]
[1768082710470,0.19219723,905.86,904.55,0.71817988]
[1768082710669,0.19219723,905.86,904.56,0.71817988]
[1768082710868,0.19219723,905.86,904.57,0.71817988]
[1768082711072,0.19219723,905.86,904.58,0.71817988]
[1768082711273,0.19219723,905.86,904.59,0.71817988]
[1768082711471,0.19219723,905.86,904.6,0.71817988]
[1768082711772,0.19219723,905.86,904.61,0.71817988]
[1768082712073,0.19219723,905.86,904.52,7.1899259]
[1768082712273,0.19219723,905.86,904.53,0.71820174]
[1768082712474,0.19219723,905.86,904.54,0.71820174]
[1768082712673,0.19219723,905.86,904.55,0.71820174]
[1768082712874,0.19219723,905.86,904.56,0.71820174]
[1768082713072,0.19219723,905.86,904.57,0.71820174]
[1768082713376,0.19219723,905.86,904.58,0.71820174]
[1768082713574,0.19219723,905.86,904.59,0.71820174]
[1768082713777,0.19219723,905.86,904.6,0.71820174]
[1768082714077,0.19219723,905.86,904.52,7.1899259]
[1768082714277,0.19219723,905.86,904.53,0.71825425]
[1768082714477,0.19219723,905.86,904.54,0.71825425]
[1768082714774,0.19219723,905.86,904.55,0.71825425]
[1768082714976,0.19219723,905.86,904.56,0.71825425]
[1768082715175,0.19219723,905.86,904.57,0.71825425]
[1768082715379,0.19219723,905.86,904.58,0.71825425]
[1768082715579,0.19219723,905.86,904.59,0.71825425]
[1768082715879,0.19219723,905.86,904.6,0.71825425]
[1768082716176,0.19219723,905.86,904.61,0.71825425]
[1768082716375,0.19219723,905.86,904.52,7.1899259]
[1768082716576,0.19219723,905.86,904.53,0.71835751]
[1768082716774,0.19219723,905.86,904.54,0.71835751]
[1768082716976,0.19219723,905.86,904.55,0.71835751]
[1768082717276,0.19219723,905.86,904.56,0.71835751]
[1768082717479,0.19219723,905.86,904.57,0.71835751]
[1768082717678,0.19219723,905.86,904.58,0.71835751]
[1768082717974,0.19219723,905.86,904.59,0.71835751]
[1768082718178,0.19219723,905.86,904.6,0.71835751]
[1768082718373,0.19219723,905.86,904.61,0.71835751]
[1768082718574,0.19219723,905.86,904.62,0.71835751]
[1768082718779,0.19219723,905.86,904.52,7.1899259]
[1768082718980,0.19219723,905.86,904.53,0.71849584]
[1768082719179,0.19219723,905.86,904.54,0.71849584]
[1768082719377,0.19219723,905.86,904.55,0.71849584]
[1768082719677,0.19219723,905.86,904.56,0.71849584]
[1768082719878,0.19219723,905.86,904.57,0.71849584]
[1768082720078,0.19219723,905.86,904.58,0.71849584]
[1768082720278,0.19219723,905.86,904.59,0.71849584]
[1768082720476,0.19219723,905.86,904.6,0.71849584]
[1768082720678,0.19219723,905.86,904.61,0.71849584]
[1768082720976,0.19219723,905.86,904.62,0.71849584]
[1768082721281,0.19219723,905.86,904.63,0.71849584]
[1768082721475,0.19219723,905.86,904.52,7.1899259]
[1768082721676,0.19219723,905.86,904.53,0.71879493]
[1768082721880,0.19219723,905.86,904.54,0.71879493]
[1768082722078,0.19219723,905.86,904.55,0.71879493]